[Event "Titled Tuesday Blitz April 05 Early 2022"]
[White "Lewtak, Damian"]
[Black "Lamaze, Simon"]
[WhiteFideId "1141724"]
[BlackFideId "36069264"]
[WhiteElo "2362"]
[BlackElo "1999"]
[Result "1-0"]
[Round "01"]
[TimeControl "180+1"]
[Date "2022.04.05"]
[WhiteClock "0:00:21"]
[BlackClock "0:00:24"]

1. d4 {[%clk 0:03:00]}  Nf6 {[%clk 0:02:55]} 2. Nf3 {[%clk 0:03:01]}  e6 {[%clk 0:02:55]} 3. c3 {[%clk 0:03:00]}  b6 {[%clk 0:02:55]} 4. Bf4 {[%clk 0:02:58]}  Bb7 {[%clk 0:02:55]} 5. e3 {[%clk 0:02:59]}  c5 {[%clk 0:02:55]} 6. Nbd2 {[%clk 0:02:59]}  d5 {[%clk 0:02:56]} 7. Bd3 {[%clk 0:02:59]}  Nc6 {[%clk 0:02:55]} 8. Qe2 {[%clk 0:02:59]}  Be7 {[%clk 0:02:54]} 9. dxc5 {[%clk 0:02:56]}  bxc5 {[%clk 0:02:50]} 10. e4 {[%clk 0:02:57]}  d4 {[%clk 0:02:50]} 11. cxd4 {[%clk 0:02:46]}  cxd4 {[%clk 0:02:49]} 12. O-O {[%clk 0:02:40]}  O-O {[%clk 0:02:48]} 13. e5 {[%clk 0:02:39]}  Nd5 {[%clk 0:02:47]} 14. Qe4 {[%clk 0:02:36]}  g6 {[%clk 0:02:43]} 15. Bh6 {[%clk 0:02:36]}  Re8 {[%clk 0:02:43]} 16. a3 {[%clk 0:02:29]}  Qd7 {[%clk 0:02:17]} 17. Qg4 {[%clk 0:02:25]}  Ne3 {[%clk 0:01:54]} 18. fxe3 {[%clk 0:02:05]}  dxe3 {[%clk 0:01:54]} 19. Bxg6 {[%clk 0:02:04]}  hxg6 {[%clk 0:01:52]} 20. Bxe3 {[%clk 0:02:04]}  Qd3 {[%clk 0:01:43]} 21. Rae1 {[%clk 0:01:59]}  Rad8 {[%clk 0:01:38]} 22. Qf4 {[%clk 0:01:33]}  Qf5 {[%clk 0:01:28]} 23. Qg3 {[%clk 0:01:28]}  Rd3 {[%clk 0:01:21]} 24. Qf2 {[%clk 0:00:49]}  Red8 {[%clk 0:01:18]} 25. Nc4 {[%clk 0:00:46]}  Ba6 {[%clk 0:01:16]} 26. Rc1 {[%clk 0:00:44]}  R8d7 {[%clk 0:00:50]} 27. Nd6 {[%clk 0:00:40]}  Bxd6 {[%clk 0:00:31]} 28. Rxc6 {[%clk 0:00:33]}  Rxe3 {[%clk 0:00:30]} 29. exd6 {[%clk 0:00:25]}  Bxf1 {[%clk 0:00:22]} 30. Qxe3 {[%clk 0:00:24]}  Bb5 {[%clk 0:00:20]} 31. Rc8+ {[%clk 0:00:24]}  Kh7 {[%clk 0:00:20]} 32. Qc3 {[%clk 0:00:25]}  f6 {[%clk 0:00:18]} 33. Rc7 {[%clk 0:00:23]}  e5 {[%clk 0:00:17]} 34. Rxd7+ {[%clk 0:00:22]}  Qxd7 {[%clk 0:00:18]} 35. Qc5 {[%clk 0:00:21]}  Kg7 {[%clk 0:00:18]} 36. Nd2 {[%clk 0:00:21]}  Kf7 {[%clk 0:00:17]} 37. Ne4 {[%clk 0:00:21]}  Ke6 {[%clk 0:00:17]} 38. a4 {[%clk 0:00:19]}  Bc6 {[%clk 0:00:17]} 39. Qc4+ {[%clk 0:00:18]}  Bd5 {[%clk 0:00:18]} 40. Qxd5+ {[%clk 0:00:18]}  Kxd5 {[%clk 0:00:18]} 41. Nxf6+ {[%clk 0:00:18]}  Kxd6 {[%clk 0:00:19]} 42. Nxd7 {[%clk 0:00:19]}  Kxd7 {[%clk 0:00:19]} 43. Kf2 {[%clk 0:00:20]}  Kc6 {[%clk 0:00:20]} 44. h4 {[%clk 0:00:20]}  Kc5 {[%clk 0:00:20]} 45. g4 {[%clk 0:00:20]}  Kb4 {[%clk 0:00:21]} 46. h5 {[%clk 0:00:20]}  Kxa4 {[%clk 0:00:22]} 47. hxg6 {[%clk 0:00:20]}  Kb3 {[%clk 0:00:22]} 48. g7 {[%clk 0:00:20]}  Kxb2 {[%clk 0:00:23]} 49. g8=Q {[%clk 0:00:21]}  a5 {[%clk 0:00:24]} 50. Qd5 {[%clk 0:00:21]} 1-0


[Site "https://www.chess.com"]

[Event "Titled Tuesday Blitz April 05 Early 2022"]
[White "Manolache, Marius"]
[Black "Devaev, Alexander"]
[WhiteFideId "1201530"]
[BlackFideId "4169395"]
[WhiteElo "2364"]
[BlackElo "2185"]
[Result "0-1"]
[Round "01"]
[TimeControl "180+1"]
[Date "2022.04.05"]
[WhiteClock "0:01:58"]
[BlackClock "0:01:09"]

1. d4 {[%clk 0:02:57]}  Nf6 {[%clk 0:02:59]} 2. c4 {[%clk 0:02:57]}  e6 {[%clk 0:02:59]} 3. Nc3 {[%clk 0:02:56]}  Bb4 {[%clk 0:02:59]} 4. e3 {[%clk 0:02:57]}  c5 {[%clk 0:02:58]} 5. Nf3 {[%clk 0:02:56]}  cxd4 {[%clk 0:02:59]} 6. exd4 {[%clk 0:02:56]}  d5 {[%clk 0:02:59]} 7. Bd3 {[%clk 0:02:55]}  dxc4 {[%clk 0:02:59]} 8. Bxc4 {[%clk 0:02:56]}  Nc6 {[%clk 0:03:00]} 9. O-O {[%clk 0:02:55]}  O-O {[%clk 0:03:01]} 10. Qd3 {[%clk 0:02:55]}  b6 {[%clk 0:02:50]} 11. a3 {[%clk 0:02:55]}  Bxc3 {[%clk 0:02:50]} 12. bxc3 {[%clk 0:02:54]}  Bb7 {[%clk 0:02:49]} 13. Re1 {[%clk 0:02:53]}  Ne7 {[%clk 0:02:45]} 14. Bb3 {[%clk 0:02:50]}  Rc8 {[%clk 0:02:36]} 15. Bd2 {[%clk 0:02:50]}  Nf5 {[%clk 0:02:21]} 16. a4 {[%clk 0:02:39]}  Bd5 {[%clk 0:02:20]} 17. Reb1 {[%clk 0:02:37]}  Bxb3 {[%clk 0:02:16]} 18. Rxb3 {[%clk 0:02:36]}  Qd5 {[%clk 0:02:06]} 19. Qb1 {[%clk 0:02:30]}  Ne4 {[%clk 0:01:59]} 20. Be1 {[%clk 0:02:30]}  Ned6 {[%clk 0:01:59]} 21. a5 {[%clk 0:02:26]}  b5 {[%clk 0:01:59]} 22. a6 {[%clk 0:02:25]}  Rc6 {[%clk 0:01:55]} 23. Ne5 {[%clk 0:02:17]}  Rc7 {[%clk 0:01:47]} 24. f3 {[%clk 0:02:05]}  Rfc8 {[%clk 0:01:40]} 25. Qd3 {[%clk 0:01:59]}  f6 {[%clk 0:01:09]} 26. Ng4 {[%clk 0:01:58]}  Qxb3 {[%clk 0:01:09]} 0-1


[Site "https://www.chess.com"]

[Event "Titled Tuesday Blitz April 05 Early 2022"]
[White "Martin Duque, Jesus"]
[Black "Kobalia, Mikhail"]
[WhiteFideId "2208954"]
[BlackFideId "4119150"]
[WhiteElo "2461"]
[BlackElo "2805"]
[Result "0-1"]
[Round "01"]
[TimeControl "180+1"]
[Date "2022.04.05"]
[WhiteClock "0:00:51"]
[BlackClock "0:00:59"]

1. Nf3 {[%clk 0:02:59]}  Nf6 {[%clk 0:02:58]} 2. b3 {[%clk 0:02:48]}  d6 {[%clk 0:02:57]} 3. d4 {[%clk 0:02:37]}  g6 {[%clk 0:02:55]} 4. Bb2 {[%clk 0:02:34]}  Bg7 {[%clk 0:02:55]} 5. g3 {[%clk 0:02:33]}  O-O {[%clk 0:02:55]} 6. Bg2 {[%clk 0:02:34]}  Ne4 {[%clk 0:02:49]} 7. Nfd2 {[%clk 0:02:32]}  Nxd2 {[%clk 0:02:46]} 8. Qxd2 {[%clk 0:02:29]}  Nc6 {[%clk 0:02:44]} 9. O-O {[%clk 0:02:29]}  e5 {[%clk 0:02:43]} 10. dxe5 {[%clk 0:02:29]}  dxe5 {[%clk 0:02:43]} 11. Rd1 {[%clk 0:01:48]}  Bf5 {[%clk 0:02:30]} 12. Nc3 {[%clk 0:01:42]}  Qc8 {[%clk 0:01:35]} 13. Nd5 {[%clk 0:01:28]}  Re8 {[%clk 0:01:35]} 14. c4 {[%clk 0:01:24]}  Bg4 {[%clk 0:01:21]} 15. b4 {[%clk 0:01:04]}  Nd4 {[%clk 0:01:19]} 16. Re1 {[%clk 0:01:03]}  c6 {[%clk 0:01:18]} 17. Ne3 {[%clk 0:01:02]}  Be6 {[%clk 0:01:18]} 18. Rac1 {[%clk 0:00:56]}  Qc7 {[%clk 0:01:17]} 19. Nc2 {[%clk 0:00:55]}  Rad8 {[%clk 0:01:15]} 20. Nxd4 {[%clk 0:00:54]}  exd4 {[%clk 0:01:15]} 21. a4 {[%clk 0:00:54]}  Bf5 {[%clk 0:01:11]} 22. b5 {[%clk 0:00:53]}  d3 {[%clk 0:01:02]} 23. e4 {[%clk 0:00:52]}  Bxb2 {[%clk 0:01:00]} 24. Qxb2 {[%clk 0:00:51]}  d2 {[%clk 0:00:59]} 0-1


[Site "https://www.chess.com"]

[Event "Titled Tuesday Blitz April 05 Early 2022"]
[White "Mekhitarian, Krikor Sevag"]
[Black "Dixit, Nikhil"]
[WhiteFideId "2107660"]
[BlackFideId "5059534"]
[WhiteElo "2791"]
[BlackElo "2457"]
[Result "0-1"]
[Round "01"]
[TimeControl "180+1"]
[Date "2022.04.05"]
[WhiteClock "0:00:01"]
[BlackClock "0:00:15"]

1. Nf3 {[%clk 0:03:00]}  Nf6 {[%clk 0:02:46]} 2. c4 {[%clk 0:02:59]}  g6 {[%clk 0:02:43]} 3. Nc3 {[%clk 0:02:59]}  Bg7 {[%clk 0:02:43]} 4. e4 {[%clk 0:02:59]}  e5 {[%clk 0:02:42]} 5. Be2 {[%clk 0:02:37]}  O-O {[%clk 0:02:39]} 6. O-O {[%clk 0:02:37]}  Nc6 {[%clk 0:02:22]} 7. d3 {[%clk 0:02:37]}  d6 {[%clk 0:02:22]} 8. Rb1 {[%clk 0:02:33]}  Bg4 {[%clk 0:02:21]} 9. Be3 {[%clk 0:02:33]}  Nh5 {[%clk 0:02:19]} 10. h3 {[%clk 0:02:26]}  Be6 {[%clk 0:02:14]} 11. Ng5 {[%clk 0:02:22]}  Nf4 {[%clk 0:02:13]} 12. Nxe6 {[%clk 0:02:15]}  Nxe6 {[%clk 0:02:13]} 13. g3 {[%clk 0:02:09]}  Ncd4 {[%clk 0:02:11]} 14. Bf3 {[%clk 0:01:53]}  Nxf3+ {[%clk 0:02:04]} 15. Qxf3 {[%clk 0:01:51]}  a5 {[%clk 0:02:04]} 16. Qd1 {[%clk 0:01:32]}  f5 {[%clk 0:01:54]} 17. exf5 {[%clk 0:01:18]}  gxf5 {[%clk 0:01:55]} 18. Qh5 {[%clk 0:01:14]}  f4 {[%clk 0:01:51]} 19. Bd2 {[%clk 0:01:09]}  Rf6 {[%clk 0:01:47]} 20. Qh4 {[%clk 0:00:38]}  Qd7 {[%clk 0:01:42]} 21. Ne4 {[%clk 0:00:24]}  Rg6 {[%clk 0:01:40]} 22. Kh2 {[%clk 0:00:21]}  Nd4 {[%clk 0:01:38]} 23. f3 {[%clk 0:00:15]}  Nf5 {[%clk 0:01:09]} 24. Qh5 {[%clk 0:00:12]}  Rh6 {[%clk 0:00:53]} 25. Qg4 {[%clk 0:00:12]}  Rg6 {[%clk 0:00:51]} 26. Qh5 {[%clk 0:00:12]}  fxg3+ {[%clk 0:00:41]} 27. Kg2 {[%clk 0:00:12]}  Rf8 {[%clk 0:00:41]} 28. Rbe1 {[%clk 0:00:11]}  Qd8 {[%clk 0:00:39]} 29. h4 {[%clk 0:00:10]}  Nxh4+ {[%clk 0:00:37]} 30. Kg1 {[%clk 0:00:08]}  Nf5 {[%clk 0:00:27]} 31. Bg5 {[%clk 0:00:06]}  Qe8 {[%clk 0:00:26]} 32. Kg2 {[%clk 0:00:06]}  h6 {[%clk 0:00:25]} 33. Bd2 {[%clk 0:00:06]}  c6 {[%clk 0:00:23]} 34. Rh1 {[%clk 0:00:06]}  d5 {[%clk 0:00:23]} 35. cxd5 {[%clk 0:00:07]}  cxd5 {[%clk 0:00:24]} 36. Nc3 {[%clk 0:00:07]}  Qf7 {[%clk 0:00:21]} 37. Rh3 {[%clk 0:00:06]}  Nd4 {[%clk 0:00:20]} 38. Rf1 {[%clk 0:00:04]}  Ne6 {[%clk 0:00:20]} 39. Nxd5 {[%clk 0:00:04]}  Nf4+ {[%clk 0:00:20]} 40. Nxf4 {[%clk 0:00:03]}  exf4 {[%clk 0:00:21]} 41. Bc3 {[%clk 0:00:03]}  Re8 {[%clk 0:00:21]} 42. Bxg7 {[%clk 0:00:02]}  Re2+ {[%clk 0:00:21]} 43. Kg1 {[%clk 0:00:02]}  Kxg7 {[%clk 0:00:21]} 44. Qh4 {[%clk 0:00:01]}  Rc6 {[%clk 0:00:17]} 45. Qg4+ {[%clk 0:00:01]}  Kf8 {[%clk 0:00:16]} 46. Rh4 {[%clk 0:00:01]}  Rcc2 {[%clk 0:00:16]} 47. Qc8+ {[%clk 0:00:01]}  Rxc8 {[%clk 0:00:15]} 0-1


[Site "https://www.chess.com"]

[Event "Titled Tuesday Blitz April 05 Early 2022"]
[White "Miszler, Levente"]
[Black "Gunina, Valentina"]
[WhiteFideId "763276"]
[BlackFideId "4167570"]
[WhiteElo "1966"]
[BlackElo "2381"]
[Result "0-1"]
[Round "01"]
[TimeControl "180+1"]
[Date "2022.04.05"]
[WhiteClock "0:00:27"]
[BlackClock "0:01:09"]

1. Nf3 {[%clk 0:02:58]}  d5 {[%clk 0:02:59]} 2. d4 {[%clk 0:02:55]}  Nf6 {[%clk 0:02:58]} 3. Bg5 {[%clk 0:02:52]}  c6 {[%clk 0:02:56]} 4. e3 {[%clk 0:02:48]}  Bg4 {[%clk 0:02:55]} 5. Be2 {[%clk 0:02:46]}  e6 {[%clk 0:02:48]} 6. O-O {[%clk 0:02:45]}  Bd6 {[%clk 0:02:47]} 7. h3 {[%clk 0:02:43]}  Bxf3 {[%clk 0:02:45]} 8. Bxf3 {[%clk 0:02:40]}  Nbd7 {[%clk 0:02:43]} 9. Nd2 {[%clk 0:02:40]}  h6 {[%clk 0:02:43]} 10. Bh4 {[%clk 0:02:37]}  Qc7 {[%clk 0:02:43]} 11. e4 {[%clk 0:02:30]}  dxe4 {[%clk 0:02:38]} 12. Nxe4 {[%clk 0:02:31]}  Nxe4 {[%clk 0:02:38]} 13. Bxe4 {[%clk 0:02:32]}  g5 {[%clk 0:02:31]} 14. Bg3 {[%clk 0:02:24]}  Bxg3 {[%clk 0:02:31]} 15. fxg3 {[%clk 0:02:25]}  Qxg3 {[%clk 0:02:31]} 16. Qe2 {[%clk 0:02:00]}  Qd6 {[%clk 0:02:29]} 17. c3 {[%clk 0:01:55]}  Qe7 {[%clk 0:02:30]} 18. Rae1 {[%clk 0:01:52]}  O-O-O {[%clk 0:02:29]} 19. Qf2 {[%clk 0:01:34]}  Rhf8 {[%clk 0:02:21]} 20. d5 {[%clk 0:01:30]}  cxd5 {[%clk 0:02:20]} 21. Qxa7 {[%clk 0:01:04]}  dxe4 {[%clk 0:01:35]} 22. Qa8+ {[%clk 0:01:02]}  Kc7 {[%clk 0:01:35]} 23. Qa5+ {[%clk 0:01:02]}  Kb8 {[%clk 0:01:32]} 24. Rxe4 {[%clk 0:00:59]}  Qc5+ {[%clk 0:01:31]} 25. Qxc5 {[%clk 0:00:58]}  Nxc5 {[%clk 0:01:32]} 26. Re5 {[%clk 0:00:56]}  Nd3 {[%clk 0:01:31]} 27. Rb5 {[%clk 0:00:57]}  f5 {[%clk 0:01:29]} 28. a4 {[%clk 0:00:52]}  Nf4 {[%clk 0:01:12]} 29. a5 {[%clk 0:00:46]}  Ka7 {[%clk 0:01:12]} 30. g3 {[%clk 0:00:31]}  Nxh3+ {[%clk 0:01:09]} 31. Kg2 {[%clk 0:00:27]}  g4 {[%clk 0:01:09]} 0-1


[Site "https://www.chess.com"]

[Event "Titled Tuesday Blitz April 05 Early 2022"]
[White "Mohammadian, Mohammad"]
[Black "Koellner, Ruben Gideon"]
[WhiteFideId "12566055"]
[BlackFideId "12993093"]
[WhiteElo "1544"]
[BlackElo "2537"]
[Result "0-1"]
[Round "01"]
[TimeControl "180+1"]
[Date "2022.04.05"]
[WhiteClock "0:01:14"]
[BlackClock "0:02:35"]

1. e4 {[%clk 0:02:58]}  d6 {[%clk 0:02:59]} 2. d4 {[%clk 0:02:57]}  Nf6 {[%clk 0:02:59]} 3. Bd3 {[%clk 0:02:54]}  e5 {[%clk 0:02:55]} 4. c3 {[%clk 0:02:50]}  Nbd7 {[%clk 0:02:54]} 5. Bg5 {[%clk 0:02:49]}  Be7 {[%clk 0:02:54]} 6. Nf3 {[%clk 0:02:47]}  h6 {[%clk 0:02:54]} 7. Bh4 {[%clk 0:02:46]}  exd4 {[%clk 0:02:48]} 8. cxd4 {[%clk 0:02:44]}  Nxe4 {[%clk 0:02:46]} 9. Bxe7 {[%clk 0:02:42]}  Qxe7 {[%clk 0:02:47]} 10. Bxe4 {[%clk 0:02:40]}  Qxe4+ {[%clk 0:02:47]} 11. Qe2 {[%clk 0:02:35]}  Qxe2+ {[%clk 0:02:46]} 12. Kxe2 {[%clk 0:02:35]}  Nb6 {[%clk 0:02:46]} 13. Re1 {[%clk 0:02:34]}  Bg4 {[%clk 0:02:43]} 14. Kf1+ {[%clk 0:02:30]}  Kd7 {[%clk 0:02:44]} 15. Nfd2 {[%clk 0:02:27]}  Rae8 {[%clk 0:02:43]} 16. Nc3 {[%clk 0:02:26]}  Bf5 {[%clk 0:02:42]} 17. b3 {[%clk 0:02:14]}  Bd3+ {[%clk 0:02:41]} 18. Kg1 {[%clk 0:02:14]}  Rxe1+ {[%clk 0:02:37]} 19. Rxe1 {[%clk 0:02:12]}  Re8 {[%clk 0:02:38]} 20. Rxe8 {[%clk 0:02:05]}  Kxe8 {[%clk 0:02:39]} 21. f3 {[%clk 0:02:05]}  Kd7 {[%clk 0:02:39]} 22. Kf2 {[%clk 0:02:05]}  c5 {[%clk 0:02:38]} 23. Ke3 {[%clk 0:02:04]}  Bg6 {[%clk 0:02:38]} 24. dxc5 {[%clk 0:02:01]}  dxc5 {[%clk 0:02:39]} 25. Nde4 {[%clk 0:02:01]}  Bxe4 {[%clk 0:02:39]} 26. Nxe4 {[%clk 0:02:01]}  Kc6 {[%clk 0:02:39]} 27. Kd3 {[%clk 0:01:58]}  Nd5 {[%clk 0:02:38]} 28. a3 {[%clk 0:01:49]}  Nf4+ {[%clk 0:02:38]} 29. Kc4 {[%clk 0:01:46]}  b5+ {[%clk 0:02:37]} 30. Kc3 {[%clk 0:01:41]}  Nxg2 {[%clk 0:02:38]} 31. Ng3 {[%clk 0:01:33]}  g6 {[%clk 0:02:35]} 32. Ne4 {[%clk 0:01:32]}  Nf4 {[%clk 0:02:32]} 33. Nf6 {[%clk 0:01:30]}  Nd5+ {[%clk 0:02:32]} 34. Nxd5 {[%clk 0:01:25]}  Kxd5 {[%clk 0:02:33]} 35. b4 {[%clk 0:01:25]}  c4 {[%clk 0:02:31]} 36. h4 {[%clk 0:01:21]}  Ke5 {[%clk 0:02:29]} 37. a4 {[%clk 0:01:18]}  a6 {[%clk 0:02:29]} 38. axb5 {[%clk 0:01:18]}  axb5 {[%clk 0:02:30]} 39. Kd2 {[%clk 0:01:18]}  Kf4 {[%clk 0:02:29]} 40. Ke2 {[%clk 0:01:17]}  h5 {[%clk 0:02:30]} 41. Kf2 {[%clk 0:01:17]}  f6 {[%clk 0:02:30]} 42. Ke2 {[%clk 0:01:16]}  g5 {[%clk 0:02:31]} 43. hxg5 {[%clk 0:01:16]}  fxg5 {[%clk 0:02:32]} 44. Kf2 {[%clk 0:01:16]}  h4 {[%clk 0:02:33]} 45. Kg2 {[%clk 0:01:16]}  c3 {[%clk 0:02:33]} 46. Kf2 {[%clk 0:01:14]}  c2 {[%clk 0:02:34]} 47. Ke2 {[%clk 0:01:14]}  c1=Q {[%clk 0:02:35]} 0-1


[Site "https://www.chess.com"]

[Event "Titled Tuesday Blitz April 05 Early 2022"]
[White "Mokshanov, Alexey"]
[Black "Terletsky, Oleg"]
[WhiteFideId "24121657"]
[BlackFideId "14116774"]
[WhiteElo "2141"]
[BlackElo "2064"]
[Result "0-1"]
[Round "01"]
[TimeControl "180+1"]
[Date "2022.04.05"]
[WhiteClock "0:01:18"]
[BlackClock "0:00:17"]

1. e4 {[%clk 0:03:00]}  e5 {[%clk 0:02:59]} 2. Nf3 {[%clk 0:03:00]}  Nc6 {[%clk 0:02:59]} 3. d4 {[%clk 0:03:00]}  exd4 {[%clk 0:02:59]} 4. Nxd4 {[%clk 0:03:01]}  Nf6 {[%clk 0:02:58]} 5. Nxc6 {[%clk 0:03:01]}  bxc6 {[%clk 0:02:58]} 6. e5 {[%clk 0:03:01]}  Qe7 {[%clk 0:02:59]} 7. Qe2 {[%clk 0:03:02]}  Nd5 {[%clk 0:02:58]} 8. c4 {[%clk 0:03:02]}  Ba6 {[%clk 0:02:59]} 9. b3 {[%clk 0:03:01]}  O-O-O {[%clk 0:02:57]} 10. Bb2 {[%clk 0:02:58]}  Qg5 {[%clk 0:02:57]} 11. g3 {[%clk 0:02:48]}  Bb4+ {[%clk 0:02:49]} 12. Nd2 {[%clk 0:02:41]}  Nc3 {[%clk 0:02:39]} 13. f4 {[%clk 0:02:10]}  Qg6 {[%clk 0:01:47]} 14. Qd3 {[%clk 0:01:50]}  Ne4 {[%clk 0:01:20]} 15. O-O-O {[%clk 0:01:50]}  Nxd2 {[%clk 0:01:07]} 16. Rxd2 {[%clk 0:01:49]}  Bxd2+ {[%clk 0:01:06]} 17. Qxd2 {[%clk 0:01:50]}  c5 {[%clk 0:00:46]} 18. Bd3 {[%clk 0:01:43]}  Qb6 {[%clk 0:00:44]} 19. Rd1 {[%clk 0:01:32]}  Kb8 {[%clk 0:00:43]} 20. Bf5 {[%clk 0:01:29]}  d6 {[%clk 0:00:42]} 21. e6 {[%clk 0:01:29]}  fxe6 {[%clk 0:00:38]} 22. Bxe6 {[%clk 0:01:29]}  Rhe8 {[%clk 0:00:38]} 23. Bd5 {[%clk 0:01:28]}  Re7 {[%clk 0:00:35]} 24. Qc2 {[%clk 0:01:26]}  h6 {[%clk 0:00:23]} 25. f5 {[%clk 0:01:25]}  Rde8 {[%clk 0:00:21]} 26. f6 {[%clk 0:01:25]}  gxf6 {[%clk 0:00:21]} 27. Bxf6 {[%clk 0:01:26]}  Re2 {[%clk 0:00:21]} 28. Rd2 {[%clk 0:01:21]}  Rxd2 {[%clk 0:00:17]} 29. Qxd2 {[%clk 0:01:21]}  Bb7 {[%clk 0:00:18]} 30. Qxh6 {[%clk 0:01:17]}  Bxd5 {[%clk 0:00:18]} 31. cxd5 {[%clk 0:01:18]}  Qa6 {[%clk 0:00:17]} 0-1


[Site "https://www.chess.com"]

[Event "Titled Tuesday Blitz April 05 Early 2022"]
[White "Molina, Roberto Junio Brito"]
[Black "Plazuelo Pascual, Juan"]
[WhiteFideId "2109450"]
[BlackFideId "32059566"]
[WhiteElo "2432"]
[BlackElo "2359"]
[Result "0-1"]
[Round "01"]
[TimeControl "180+1"]
[Date "2022.04.05"]
[WhiteClock "0:00:44"]
[BlackClock "0:00:06"]

1. d4 {[%clk 0:03:00]}  d5 {[%clk 0:02:58]} 2. e3 {[%clk 0:03:01]}  Nf6 {[%clk 0:02:58]} 3. Nf3 {[%clk 0:03:02]}  c5 {[%clk 0:02:58]} 4. c3 {[%clk 0:03:02]}  e6 {[%clk 0:02:53]} 5. Nbd2 {[%clk 0:03:02]}  b6 {[%clk 0:02:50]} 6. Bd3 {[%clk 0:03:02]}  Bb7 {[%clk 0:02:50]} 7. O-O {[%clk 0:03:02]}  Nbd7 {[%clk 0:02:49]} 8. Qe2 {[%clk 0:03:03]}  Be7 {[%clk 0:02:46]} 9. e4 {[%clk 0:03:03]}  dxe4 {[%clk 0:02:46]} 10. Nxe4 {[%clk 0:03:04]}  Nxe4 {[%clk 0:02:46]} 11. Bxe4 {[%clk 0:03:05]}  Bxe4 {[%clk 0:02:46]} 12. Qxe4 {[%clk 0:03:06]}  O-O {[%clk 0:02:42]} 13. Rd1 {[%clk 0:03:06]}  Nf6 {[%clk 0:02:38]} 14. Qe2 {[%clk 0:03:06]}  Qc7 {[%clk 0:02:36]} 15. Bg5 {[%clk 0:03:06]}  Nd5 {[%clk 0:02:26]} 16. c4 {[%clk 0:03:03]}  Nf6 {[%clk 0:01:52]} 17. b3 {[%clk 0:03:01]}  Rad8 {[%clk 0:01:51]} 18. Rd3 {[%clk 0:02:44]}  cxd4 {[%clk 0:01:50]} 19. Nxd4 {[%clk 0:02:45]}  Qc5 {[%clk 0:01:42]} 20. Be3 {[%clk 0:02:44]}  Qe5 {[%clk 0:01:40]} 21. Rad1 {[%clk 0:02:42]}  Rc8 {[%clk 0:01:38]} 22. g3 {[%clk 0:02:40]}  Bc5 {[%clk 0:01:29]} 23. Nb5 {[%clk 0:02:36]}  Bxe3 {[%clk 0:01:11]} 24. Qxe3 {[%clk 0:02:33]}  Qxe3 {[%clk 0:01:11]} 25. Rxe3 {[%clk 0:02:34]}  a6 {[%clk 0:01:07]} 26. Nd6 {[%clk 0:02:32]}  Rc6 {[%clk 0:01:05]} 27. Red3 {[%clk 0:02:33]}  g5 {[%clk 0:01:02]} 28. f3 {[%clk 0:02:26]}  h5 {[%clk 0:00:59]} 29. Kf2 {[%clk 0:02:26]}  Kg7 {[%clk 0:00:59]} 30. Ke3 {[%clk 0:02:27]}  Kg6 {[%clk 0:00:58]} 31. h4 {[%clk 0:02:12]}  Nd5+ {[%clk 0:00:53]} 32. cxd5 {[%clk 0:02:10]}  Rxd6 {[%clk 0:00:53]} 33. hxg5 {[%clk 0:02:10]}  Kxg5 {[%clk 0:00:52]} 34. dxe6 {[%clk 0:02:09]}  Rxe6+ {[%clk 0:00:50]} 35. Kf2 {[%clk 0:02:10]}  Rfe8 {[%clk 0:00:50]} 36. R1d2 {[%clk 0:02:09]}  Kg6 {[%clk 0:00:46]} 37. f4 {[%clk 0:02:08]}  Re4 {[%clk 0:00:33]} 38. Rd6+ {[%clk 0:02:08]}  R8e6 {[%clk 0:00:33]} 39. R6d5 {[%clk 0:02:09]}  Kh6 {[%clk 0:00:27]} 40. Rd7 {[%clk 0:02:06]}  Kg6 {[%clk 0:00:26]} 41. Ra7 {[%clk 0:01:57]}  h4 {[%clk 0:00:25]} 42. Rxa6 {[%clk 0:01:46]}  hxg3+ {[%clk 0:00:25]} 43. Kxg3 {[%clk 0:01:47]}  Re3+ {[%clk 0:00:26]} 44. Kf2 {[%clk 0:01:46]}  R3e4 {[%clk 0:00:25]} 45. Kg3 {[%clk 0:01:36]}  Re3+ {[%clk 0:00:25]} 46. Kg2 {[%clk 0:01:37]}  Kf5 {[%clk 0:00:22]} 47. Ra4 {[%clk 0:01:35]}  b5 {[%clk 0:00:18]} 48. Rd5+ {[%clk 0:01:30]}  Kg4 {[%clk 0:00:13]} 49. Rg5+ {[%clk 0:01:30]}  Kh4 {[%clk 0:00:12]} 50. Rxb5 {[%clk 0:01:21]}  Re2+ {[%clk 0:00:12]} 51. Kf1 {[%clk 0:01:21]}  Re1+ {[%clk 0:00:12]} 52. Kf2 {[%clk 0:01:22]}  R6e2+ {[%clk 0:00:13]} 53. Kf3 {[%clk 0:01:22]}  Re3+ {[%clk 0:00:13]} 54. Kf2 {[%clk 0:01:23]}  R1e2+ {[%clk 0:00:14]} 55. Kf1 {[%clk 0:01:23]}  Re1+ {[%clk 0:00:14]} 56. Kf2 {[%clk 0:01:23]}  R1e2+ {[%clk 0:00:14]} 57. Kf1 {[%clk 0:01:23]}  Kg3 {[%clk 0:00:08]} 58. Rg5+ {[%clk 0:01:18]}  Kf3 {[%clk 0:00:08]} 59. Kg1 {[%clk 0:01:18]}  Re1+ {[%clk 0:00:05]} 60. Kh2 {[%clk 0:01:18]}  R3e2+ {[%clk 0:00:06]} 61. Rg2 {[%clk 0:00:44]}  Rxg2+ {[%clk 0:00:06]} 62. Kh3 {[%clk 0:00:44]}  Rh1# {[%clk 0:00:06]} 0-1


[Site "https://www.chess.com"]

[Event "Titled Tuesday Blitz April 05 Early 2022"]
[White "Niyazgulova, Marina"]
[Black "Seo, Jung Min"]
[WhiteFideId "24142573"]
[BlackFideId "1734687"]
[WhiteElo "2046"]
[BlackElo "2401"]
[Result "0-1"]
[Round "01"]
[TimeControl "180+1"]
[Date "2022.04.05"]
[WhiteClock "0:01:48"]
[BlackClock "0:01:53"]

1. d4 {[%clk 0:02:59]}  Nf6 {[%clk 0:03:00]} 2. c4 {[%clk 0:02:58]}  e6 {[%clk 0:03:00]} 3. Nc3 {[%clk 0:02:58]}  Bb4 {[%clk 0:03:00]} 4. Qc2 {[%clk 0:02:56]}  O-O {[%clk 0:02:59]} 5. Bg5 {[%clk 0:02:55]}  c5 {[%clk 0:02:56]} 6. Nf3 {[%clk 0:02:51]}  cxd4 {[%clk 0:02:54]} 7. Nxd4 {[%clk 0:02:50]}  Nc6 {[%clk 0:02:54]} 8. e3 {[%clk 0:02:44]}  h6 {[%clk 0:02:45]} 9. Bh4 {[%clk 0:02:43]}  d5 {[%clk 0:02:30]} 10. cxd5 {[%clk 0:02:39]}  Nxd4 {[%clk 0:02:30]} 11. exd4 {[%clk 0:02:39]}  Qxd5 {[%clk 0:02:22]} 12. Bxf6 {[%clk 0:02:27]}  gxf6 {[%clk 0:02:22]} 13. Qd2 {[%clk 0:02:25]}  Qg5 {[%clk 0:02:21]} 14. Rd1 {[%clk 0:02:17]}  Qxd2+ {[%clk 0:02:16]} 15. Rxd2 {[%clk 0:02:17]}  Rd8 {[%clk 0:02:16]} 16. Be2 {[%clk 0:02:11]}  b6 {[%clk 0:02:10]} 17. Bf3 {[%clk 0:02:10]}  Rb8 {[%clk 0:02:11]} 18. O-O {[%clk 0:02:10]}  Ba6 {[%clk 0:02:11]} 19. Rc1 {[%clk 0:01:58]}  Kg7 {[%clk 0:02:02]} 20. a3 {[%clk 0:01:56]}  Bd6 {[%clk 0:02:01]} 21. Ne4 {[%clk 0:01:53]}  Bf4 {[%clk 0:02:00]} 22. Rcd1 {[%clk 0:01:52]}  Bxd2 {[%clk 0:02:00]} 23. Rxd2 {[%clk 0:01:52]}  Rbc8 {[%clk 0:01:59]} 24. g3 {[%clk 0:01:52]}  Bb7 {[%clk 0:01:54]} 25. Kg2 {[%clk 0:01:48]}  Bxe4 {[%clk 0:01:53]} 26. Bxe4 {[%clk 0:01:48]}  Rc4 {[%clk 0:01:53]} 0-1


[Site "https://www.chess.com"]